Cogmind - Beta 15 @@@ ROGUE MODE // 2025.08.21 @ 02:07:43 Player: OoferDoofums Result: Destroyed by H-55 Commando with Assault Rifle Performance ------------- Evolutions (2) 1000 Regions Visited (4) 800 Robots Destroyed (35) 175 Value Destroyed (817) 817 Prototype IDs (2) 40 Alien Tech Used (0) 0 Bonus (0) 0 TOTAL SCORE: 2832 Bonus ------- None Cogmind --------- Core Integrity 0/550 Matter 260/300 Energy 100/100 System Corruption 3% Temperature Cool (0) Movement Core (500) Ox9 Location -8/Materials Parts ------- > --- POWER (1) -------- (None) > --- PROPULSION (3) --- (None) > --- UTILITY (5) ------ Large Storage Unit Signal Interpreter Reflective Plating Reflective Plating > --- WEAPON (2) ------- Small Laser > --- INVENTORY (15) --- Large Storage Unit Improved Terrain Scan Processor Transport Network Coupler Weapon Shielding Peak State ------------ > --- POWER ------------ Light Nuclear Core > --- PROPULSION ------- Compact Wheel > --- UTILITY ---------- Improved Heat Sink Large Storage Unit Signal Interpreter Improved Targeting Computer Reflective Plating > --- WEAPON ----------- Heavy EM Shotgun Mace > --- INVENTORY -------- Improved Hover Unit Improved Hover Unit Improved Hover Unit Improved Hover Unit Large Storage Unit Improved Terrain Scan Processor Transport Network Coupler Weapon Shielding Reflective Plating Reflective Plating Reflective Plating Small Laser Advanced Beam Cannon [Rating: 22] Favorites ----------- Power Ion Engine Engine Ion Engine Power Core Light Nuclear Core Propulsion Compact Wheel Treads Light Treads Leg Aluminum Leg Wheel Compact Wheel Hover Unit Improved Hover Unit Utility Large Storage Unit Device Sensor Array Storage Large Storage Unit Processor Signal Interpreter Protection Light Armor Plating Weapon Mace Energy Gun Medium Laser Energy Cannon Advanced Beam Cannon Ballistic Gun Assault Rifle Impact Weapon Mace Slashing Weapon Mining Claw Build | -11 -10 -9 -9 -8 ------- Run | Yrd Mat Mat Min Mat Slots Evolved 4 | . . 2 . 2 Power . | . . . . . Propulsion 1 | . . 1 . . Utility 3 | . . 1 . 2 Weapon . | . . . . . Parts Attached 48 | 7 8 11 3 19 Power 8 | 1 1 2 2 2 Engine 7 | 1 1 2 2 1 Core 1 | . . . . 1 Reactor . | . . . . . Propulsion 13 | 3 1 3 . 6 Treads 1 | . . 1 . . Leg 2 | 2 . . . . Wheel 6 | 1 1 2 . 2 Hover 4 | . . . . 4 Flight . | . . . . . Utility 15 | 1 3 3 1 7 Device 3 | . . 2 . 1 Storage 3 | 1 2 . . . Processor 2 | . . . . 2 Hackware . | . . . . . Protection 7 | . 1 1 1 4 Artifact . | . . . . . Weapon 12 | 2 3 3 . 4 Energy Gun 7 | 1 2 2 . 2 Energy Cannon 1 | . . . . 1 Ballistic Gun 2 | 1 . . . 1 Ballistic Cannon . | . . . . . Launcher . | . . . . . Special Weapon . | . . . . . Impact Weapon 1 | . . 1 . . Slashing Weapon 1 | . 1 . . . Piercing Weapon . | . . . . . Special Melee Weapon . | . . . . . Unidentified Prototypes 2 | . . . . 2 Corrupted Parts 2 | . . . . 2 System Corruption 3 | . . . . 3 Parts Lost 26 | . . 1 1 24 Power 4 | . . . . 4 Propulsion 10 | . . 1 . 9 Utility 7 | . . . 1 6 Weapon 5 | . . . . 5 Highest Loss Streak 16 | . . 1 1 16 To Critical Strikes . | . . . . . Average Backups 12 | 3 11 14 14 11 Power . | . 1 1 1 . Propulsion 3 | 2 4 3 4 3 Utility 5 | . 3 7 6 5 Weapon 2 | . 2 1 2 1 Tool/Special . | . . . . . Unused Backups 16 | . 4 7 . 5 Power . | . . . . . Propulsion 6 | . 2 4 . . Utility 9 | . 2 3 . 4 Weapon . | . . . . . Tool/Special 1 | . . . . 1 Average Slot Usage (%) 91 | . 92 99 100 77 Engine 10 | . 14 11 11 5 Treads 2 | . . 5 . . Leg 1 | . 7 . . . Wheel 21 | . 20 27 33 13 Device 6 | . . 10 11 5 Storage 11 | . 14 11 11 9 Processor 4 | . . . . 16 Protection 9 | . 6 11 11 7 Energy Gun 14 | . 16 18 11 5 Ballistic Gun 3 | . 10 . . 1 Impact Weapon 4 | . . 3 11 7 Peak Build Rating 22 | 6 9 14 14 22 Average Rating 11 | 4 7 12 13 14 On Entrance 8 | . 6 9 14 14 Naked Turns . | . . . . . Heaviest Build 39 | 12 32 38 38 39 Greatest Support 48 | 20 32 48 48 48 Greatest Overweight (x) 12 | . 1 1 . 12 Average Overweight (x) . | . . . . 1 Largest Inventory Capacity 15 | 8 15 15 15 15 Average Capacity 14 | 7 14 15 15 15 Most Carried 15 | 6 15 15 15 15 Average Carried 12 | 3 11 14 14 11 Final Capacity 15 | 8 15 15 15 15 Final Carried 15 | 6 15 15 14 4 Class Distribution -------------------- 100% | Mutant Dominant Class ---------------- Mutant | -10/Materials Mutant | -9/Materials Mutant | -9/Mines Mutant | -8/Materials Resources | -11 -10 -9 -9 -8 ----------- Run | Yrd Mat Mat Min Mat Matter Collected 711 | 180 169 154 25 183 Remotely . | . . . . . Salvage Created 1322 | . 207 585 24 506 Parts 59 | . 16 17 5 21 Haulers Intercepted 1 | . 1 . . . Recyclers Shooed 6 | . 1 3 1 1 Parts Field Recycled . | . . . . . Retrieved Matter . | . . . . . Parts Self-Destructed . | . . . . . Prevented . | . . . . . Kills | -11 -10 -9 -9 -8 ------- Run | Yrd Mat Mat Min Mat Combat Hostiles Destroyed 23 | . 2 6 2 13 Melee 1 | . . . . 1 Guns 14 | . 2 4 2 6 Cannons 5 | . . . . 5 Classes Destroyed 8 | . 4 3 1 . Worker 2 | . 2 . . . Builder 1 | . 1 . . . Hauler 1 | . 1 . . . Recycler 6 | . . 4 . 2 Operator 1 | . . 1 . . Watcher 1 | . . 1 . . Swarmer 8 | . . . 2 6 Grunt 15 | . 2 6 . 7 Best Kill Streak 6 | . 2 6 2 5 Combat Bots Only 6 | . 2 3 2 6 Max Kills in Single Turn 1 | . 1 1 1 1 Gunslinging . | . . . . . Exploded . | . . . . . Melee 1 | . . . . 1 Uniques/NPCs Destroyed . | . . . . . Combat | -11 -10 -9 -9 -8 -------- Run | Yrd Mat Mat Min Mat Hostile Shots Fired 335 | . 16 47 32 240 Missed 94 | . 9 13 11 61 Hits 241 | . 7 34 21 179 Projectile 241 | . 7 34 21 179 Critical Strikes 9 | . . 2 1 6 Damage Taken 3083 | . 115 474 180 2314 Core 692 | . 25 102 14 551 Absorbed by Shields . | . . . . . Ignored by Resistances 54 | . . . . 54 Core Remaining (%) 87 | 100 90 . 71 . Volleys Fired 116 | . 18 27 8 63 Largest 2 | . 2 2 1 2 Hottest 133 | . 105 115 65 133 Shots Fired 150 | . 29 48 8 65 Gun 118 | . 29 48 8 33 Cannon 32 | . . . . 32 Launcher . | . . . . . Special . | . . . . . Kinetic 15 | . 8 . . 7 Thermal 123 | . 21 48 8 46 Explosive . | . . . . . Electromagnetic 12 | . . . . 12 Robot Hit Streak 11 | . 6 5 4 11 Robot Miss Streak 7 | . 3 3 7 4 Penetration Max . | . . . . . Secondary Targets . | . . . . . Shots Hit Robots 121 | . 15 38 6 62 Core Hits 70 | . 10 16 9 35 Critical Kills . | . . . . . Critical Parts Destroyed 4 | . . 2 . 2 Critical Strikes 5 | . 1 2 . 2 Burn 1 | . 1 . . . Smash 4 | . . 2 . 2 Melee Attacks 27 | . 1 9 . 17 Impact 26 | . . 9 . 17 Slashing 1 | . 1 . . . Piercing . | . . . . . Sneak Attacks 6 | . . 4 . 2 Combat Hostiles 1 | . . 1 . . Follow-up Attacks . | . . . . . Damage Inflicted 2464 | . 236 811 63 1354 Guns 1120 | . 224 388 63 445 Cannons 533 | . . . . 533 Explosions . | . . . . . Melee 798 | . . 423 . 375 Ramming 13 | . 12 . . 1 Kinetic 101 | . 65 . . 36 Thermal 1346 | . 159 388 63 736 Explosive . | . . . . . Electromagnetic 206 | . . . . 206 Impact 798 | . . 423 . 375 Slashing . | . . . . . Piercing . | . . . . . Highest Corruption 4 | . 4 . . 3 Average Corruption 3 | . 3 . . 2 Corruption Purged . | . . . . . Corruption Blocked . | . . . . . Effects 14 | . 10 . . 4 Message Errors 3 | . 3 . . . Matter Fused 2 | . 1 . . 1 Heat Flow Errors 3 | . 2 . . 1 Energy Discharges 2 | . 1 . . 1 Data Loss (minor) 1 | . . . . 1 Misfires 1 | . 1 . . . Weapon Failures 2 | . 2 . . . Overload Shots . | . . . . . Overflow Damage 359 | . . 173 . 186 Projectiles 10 | . . . . 10 Explosions . | . . . . . Melee 349 | . . 173 . 176 Knockbacks 2 | . . 1 . 1 Impact 2 | . . 1 . 1 Kinetic . | . . . . . Secondary . | . . . . . Self-Inflicted Damage 6 | . 6 . . . Shots . | . . . . . Rammed 2 | . 1 . . 1 Targets Rammed 2 | . 1 . . 1 Kicked . | . . . . . Crushed . | . . . . . Highest Temperature 330 | . 214 330 120 322 Average Temperature 97 | . 68 108 65 111 Received Heat Transfer 1218 | . 57 303 12 846 Effects 3 | . . 2 . 1 Interference 3 | . . 2 . 1 Siege Activations . | . . . . . Martial Activations . | . . . . . Shielding Activations . | . . . . . Robots Disrupted . | . . . . . Combat Hostiles . | . . . . . Robots Corrupted 4 | . . 3 . 1 Combat Hostiles 3 | . . 2 . 1 Parts Fried 7 | . . 4 . 3 Impact Corruptions 12 | . . 7 . 5 Robots Melted . | . . . . . Combat Hostiles . | . . . . . Parts Melted 2 | . . 1 . 1 Heat Transferred 2728 | . 495 941 75 1217 Parts Sabotaged . | . . . . . Parts Stolen . | . . . . . Parts Stripped . | . . . . . Power Chain Reactions . | . . . . . Alert | -11 -10 -9 -9 -8 ------- Run | Yrd Mat Mat Min Mat Maximum Alert Level . | . . . . . Low Security (%) 100 | 100 100 100 100 100 Level 1 . | . . . . . Level 2 . | . . . . . Level 3 . | . . . . . Level 4 . | . . . . . Level 5 . | . . . . . High Security . | . . . . . Max Security . | . . . . . Peak Influence 96 | . 40 95 35 96 Initial 15 | . . 8 15 9 Average 20 | . 10 23 29 29 Influence Increases 710 | . 102 212 40 356 Destroy 0b10 Robot/C 460 | . 40 120 40 260 Destroy 0b10 Robot/NC 60 | . 20 30 . 10 Destroy Leader 64 | . 12 32 . 20 Successful Hack 5 | . . . . 5 Disable Machine 30 | . 30 . . . Destroy Structure 1 | . . . . 1 Lose Combat Pursuer 90 | . . 30 . 60 Influence Decreases 710 | . 81 194 54 381 Entered New Map 53 | . . 13 24 16 Time Decay 422 | . 81 171 20 150 Lost Part 235 | . . 10 10 215 Squads Dispatched 3 | . . 1 1 1 Investigation 2 | . . . 1 1 Extermination . | . . . . . Reinforcement 1 | . . 1 . . Assault . | . . . . . Garrison . | . . . . . Intercept . | . . . . . Searches Triggered . | . . . . . Construction Impeded . | . . . . . Haulers Reinforced . | . . . . . Active Scanning Responses . | . . . . . Cargo Convoy Interrupts . | . . . . . Stealth | -11 -10 -9 -9 -8 --------- Run | Yrd Mat Mat Min Mat Distress Signals 3 | . . . . 3 Communications Jammed . | . . . . . Distress Signals . | . . . . . Times Spotted 53 | . 4 13 6 30 Peak Tracking Total 12 | . 2 4 4 12 Tactical Retreats 6 | . . 2 . 4 Traps | -11 -10 -9 -9 -8 ------- Run | Yrd Mat Mat Min Mat Traps Triggered 3 | . 3 . . . Indirectly . | . . . . . Trap Hack Attempts . | . . . . . Triggered . | . . . . . Disarmed . | . . . . . Reprogrammed . | . . . . . Reused . | . . . . . Traps Extracted . | . . . . . Installed . | . . . . . Triggered . | . . . . . Machines | -11 -10 -9 -9 -8 ---------- Run | Yrd Mat Mat Min Mat Machines Disabled 2 | . 2 . . . Max in Single Turn 1 | . 1 . . . Machines Repaired . | . . . . . Machines Dismantled . | . . . . . Machines Sabotaged . | . . . . . Overloaded Fab Kills . | . . . . . Hacking | -11 -10 -9 -9 -8 --------- Run | Yrd Mat Mat Min Mat Machines Accessed 4 | . . 2 1 1 Terminals 4 | . . 2 1 1 Fabricators . | . . . . . Repair Stations . | . . . . . Recycling Units . | . . . . . Scanalyzers . | . . . . . Garrison Access . | . . . . . Total Hacks 11 | . . 4 4 3 Successful 3 | . . 1 1 1 Failed 8 | . . 3 3 2 Catastrophic 3 | . . 1 1 1 Database Lockouts . | . . . . . Manual 8 | . . 3 3 2 Terminals 11 | . . 4 4 3 Fabricators . | . . . . . Repair Stations . | . . . . . Recycling Units . | . . . . . Scanalyzers . | . . . . . Garrison Access . | . . . . . Terminal Hacks 3 | . . 1 1 1 Record 1 | . . 1 . . Zone Layout 2 | . . . 1 1 Fabricator Hacks . | . . . . . Repair Station Hacks . | . . . . . Recycling Unit Hacks . | . . . . . Scanalyzer . | . . . . . Garrison Access Hacks . | . . . . . Unauthorized Hacks . | . . . . . Terminals . | . . . . . Fabricators . | . . . . . Repair Stations . | . . . . . Recycling Units . | . . . . . Scanalyzers . | . . . . . Garrison Access . | . . . . . Data Cores Recovered 1 | . . 1 . . Used . | . . . . . Hacking Detections 4 | . . 2 1 1 Full Trace Events 3 | . . 1 1 1 Feedback Events . | . . . . . Feedback Blocked . | . . . . . Robot Schematics Acquired . | . . . . . Robots Built . | . . . . . Authchips . | . . . . . Time . | . . . . . Total Robot Build Rating . | . . . . . Part Schematics Acquired . | . . . . . Parts Built . | . . . . . Authchips . | . . . . . Time . | . . . . . Total Part Build Rating . | . . . . . Parts Repaired . | . . . . . Time . | . . . . . Parts Recycled . | . . . . . Recycled Matter . | . . . . . Retrieved Matter . | . . . . . Retrieved Components . | . . . . . Parts Scanalyzed . | . . . . . Part Schematics Acquired . | . . . . . Parts Damaged . | . . . . . Bothacking | -11 -10 -9 -9 -8 ------------ Run | Yrd Mat Mat Min Mat Used RIF Installer . | . . . . . Robots Hacked . | . . . . . Non-combat . | . . . . . Combat . | . . . . . Robot Hacks Applied . | . . . . . Relay Couplers Released . | . . . . . Fabnet Peak Effective % . | . . . . . Robots Rewired . | . . . . . Allies Hacked . | . . . . . Hacks Repelled . | . . . . . Allies | -11 -10 -9 -9 -8 -------- Run | Yrd Mat Mat Min Mat Total Allies . | . . . . . Largest Group . | . . . . . Highest-Rated Group . | . . . . . Highest-Rated Ally . | . . . . . Total Orders . | . . . . . Ally Attacks . | . . . . . Total Damage . | . . . . . Kills . | . . . . . Allies Corrupted . | . . . . . Allies Melted . | . . . . . Intel | -11 -10 -9 -9 -8 ------- Run | Yrd Mat Mat Min Mat Active Infowar (turns) 614 | . . 343 50 221 Sensors 614 | . . 343 50 221 Robot Analysis Total . | . . . . . Derelict Logs Recovered . | . . . . . Drone Launches . | . . . . . Drone Recoveries . | . . . . . Exploration | -11 -10 -9 -9 -8 ------------- Run | Yrd Mat Mat Min Mat Turns Passed 1729 | 88 428 705 50 458 Spaces Moved 998 | 66 300 447 29 156 Core 13 | 3 . . . 10 Treads . | . . . . . Legs 37 | 37 . . . . Wheels 927 | 26 300 447 29 125 Hover 21 | . . . . 21 Flight . | . . . . . Fastest Speed 50 | 50 100 100 100 100 Average Speed 109 | 108 107 100 100 138 Slowest Speed 650 | 120 115 115 100 650 Overloaded Moves . | . . . . . Propulsion Burnouts . | . . . . . Robots Hopped . | . . . . . Potential Cave-ins . | . . . . . Cave-ins Triggered . | . . . . . Exploration Rate (%) 19 | 5 41 35 9 9 Regions Visited 4 Branch Regions 1 Pre-discovered Areas . | . . . . . Known Exits Taken . | . . . . . Unknown Exits Taken 4 | 1 1 1 1 . Scrap Searched . | . . . . . Spaces Dug . | . . . . . Terrain Destroyed . | . . . . . Melee . | . . . . . Projectile . | . . . . . AOE . | . . . . . Terrain Rammed . | . . . . . Walls Destroyed . | . . . . . Machines Disabled . | . . . . . Actions | -11 -10 -9 -9 -8 --------- Run | Yrd Mat Mat Min Mat Total 1442 | 78 373 647 41 303 Wait 174 | . 18 122 1 33 Move 994 | 65 299 446 28 156 Hop . | . . . . . Pick Up 41 | 6 17 13 . 5 Fast Attach 16 | 6 3 1 . 6 Attach 18 | . . 3 1 14 Detach . | . . . . . Swap 24 | 1 5 10 2 6 Drop 30 | . 11 16 1 2 Fire 116 | . 18 27 8 63 Melee 27 | . 1 9 . 17 Ram 2 | . 1 . . 1 Kick . | . . . . . Crush . | . . . . . Escape Stasis . | . . . . . Rewire . | . . . . . Trap . | . . . . . Miscellaneous . | . . . . . Route ------- -11/Scrapyard -10/Materials (discovered 2 exits: *Mat / [*Min]) -9/Materials -9/Mines -8/Materials History --------- Turn | Location | Event 4 | -11/Scrapyard | Discovered new exit (range 16) 89 | -11/Scrapyard | Entered Materials 334 | -10/Materials | Build established: Mutant 399 | -10/Materials | Discovered new exit (range 7) 452 | -10/Materials | Discovered new exit (range 4) 517 | -10/Materials | Entered another Materials area 517 | -9/Materials | Evolved 2 slots: Propulsion x1, Utility x1 1185 | -9/Materials | Discovered new exit (range 15) 1222 | -9/Materials | Entered Mines 1261 | -9/Mines | Discovered new exit (range 10) 1272 | -9/Mines | Entered Materials 1272 | -8/Materials | Evolved 2 slots: Utility x2 1562 | -8/Materials | Lost 7 parts (2p3n2u) 1617 | -8/Materials | Core integrity fell below 50% 1688 | -8/Materials | Core integrity fell below 20% 1730 | -8/Materials | Destroyed by H-55 Commando with Assault Rifle Last Messages --------------- Lgt. Assault Rifle destroyed. Penetrated by Slug. Imp. Hover Unit destroyed. K-01 Serf collects debris. Penetrated by Slug. K-01 Serf collects debris. Critical hit (Burn: +37). K-01 Serf collects debris. Adv. Beam Cannon destroyed. System corrupted: Component data lost. Penetrated by Slug. K-01 Serf collects debris. Penetrated by Slug. K-01 Serf collects debris. Penetrated by Slug. Reflective Plating destroyed. Slug penetrates Wall. Penetrated by Slug. W-25 Informer sends out distress signal. Penetrated by Slug. Map ----- +----------------------------------------------------+ | ?????????????????????????????????????????????????? | | ?????????????????????????????????????????????????? | | ?????????????????????????????????????????????????? | | ?????????????????????????????????????????????????? | | ?????????????????????????????????????????????????? | | ?????????????????????????????????????????????????? | | ?????????????????????????????########????????????? | | ?????????????????????????????# ] #????????????? | | ?????????????????????????????# ! #????????????? | | ?????????????????????????????# !] #????????????? | | ????????????????????########## =[ %#????????????? | | ????????????????????# # %[=*###########??? | | ????????????????????#[[[ # =%%[/*[* / | | ????????????????????#[[ ####/#############??? | | ????????????????????#[[ #* =%* #????????? | | ????????????????????# + % !=*= #????????? | | ????????????????????# """# =%%% #????????? | | ????????????????????# """# = #### #????????? | | ????????????????????# """#*%%#??# ########+# | | ????????????????????# # !|#??# #!!! | | ????????????????????########## #??# #!!! | | ?????????????????????????????# #??# #!![ | | ?????????????????????????????# #??# # | | ??????H?????????????????????## ##?# # | | ??????????????###############kg #?# + | | ?????????? k w @ #?# # | | ????????????????###### h #?# # | | ?????????????????????# #?# ########## | | ?????????????????????######## #?# #????? | | ????????????????????????????## ##?# / #????? | | ?????????????????????????????# #??# #????? | | ?????????????????????????????# #??#########????? | | ??????????????????############ #???????????????? | | ??????????????????# ## #???????????????? | | ??????????????????# ## #???????????????? | | ??????????????????# ## #???????????????? | | ??????????????????# ## #????#########??? | | ??????????????????# """ """ ## #????# ??? | | ??????????????????# """ """ ## #????# ??? | | ??????????????????# """ """ ## #????# ??? | | ??????????????????# ## #????# ??? | | ??????????????????####+####### ###### ??? | | ?????????????????????????????# ???????????????? | | ?????????????????????????????#####???????????????? | | ?????????????????????????????????????????????????? | | ?????????????????????????????????????????????????? | | ?????????????????????????????????????????????????? | | ?????????????????????????????????????????????????? | | ?????????????????????????????????????????????????? | | ?????????????????????????????????????????????????? | +----------------------------------------------------+ Best States ------------- Heat Dissipation 45 Energy Generation 14 Energy Capacity 250 Matter Stores 300 Matter Capacity 300 Sight Range 16 Robot Scan Range 14 Terrain Scan Density 10 Additional Mass Support 6 Armor Coverage 450 Resistance: TH 10 Evasion (%) 50 Targeting Accuracy 6 Item Schematics ----------------- None Robot Schematics ------------------ None Fabricated ------------ Nothing Repaired ---------- Nothing Alien Tech Used ----------------- None Achievements -------------- None Challenges ------------ None Game ------ Seed HugeStorageMiniperforator Manual? 0 Play Time 00:38:32 Cumulative 35.4 hours Start 2025.08.21 @ 01:30:42 End 2025.08.21 @ 02:07:43 Sessions 1 Manual Loads 0 Difficulty Rogue Special Mode None Game No. 64 Rogue 64 Adventurer 0 Explorer 0 Win Type - Total 0 Types 0/0/0/0/0/0/0/0/0/0 Lore% 25 Gallery% 27 Achievement% 23 Wizard Run 0 Options --------- Layout 1 ASCII 0 Keyboard 0 Movement Mouse Keybinds 0 Fullscreen 1 Font 24/Smallcaps Map View 50x35 Zoom Use 0% Tactical HUD 0 Map Filters NONE Filters NONE Steam 1 RUN: 313cd6fb-9abd-40be-8fd4-ba4a160aaaaf